fUST/lending_fUST_20260113
["ID","MTS","AMOUNT","RATE_DAILY","PERIOD"]
[401576217,1768306232615,-500.0,0.0001566,2]
[401576218,1768306232624,-250.50663008,0.0001566,2]
[401576219,1768306232633,-200.0,0.0001566,2]
[401576220,1768306232642,-1886.95207218,0.0001566,2]
[401576221,1768306232650,-166797.74909891,0.00015661,2]
[401576222,1768306232661,-1371.92452659,0.00015661,2]
[401576254,1768306238661,-724.46984263,0.00015661,2]
[401576255,1768306238716,-831105.85653187,0.00015661,2]
[401576256,1768306238726,-155.34320915,0.00015661,2]
[401576257,1768306238736,-458089.42063338,0.0001576,2]
[401576258,1768306238745,-1041.66666667,0.00015761,2]
[401576259,1768306238755,-250.0,0.00015863,2]
[401576260,1768306238765,-278.71455945,0.00015863,2]
[401576261,1768306238774,-168.3888056,0.00015863,2]
[401576262,1768306238783,-174.61919141,0.00015863,2]
[401576263,1768306238793,-151.0,0.00015863,2]
[401576264,1768306238802,-181.08010149,0.00015863,2]
[401576265,1768306238811,-187.78006525,0.00015863,2]
[401576266,1768306238820,-194.72792766,0.00015863,2]
[401576267,1768306238829,-201.93286099,0.00015863,2]
[401576268,1768306238838,-209.40437684,0.00015863,2]
[401576269,1768306238848,-217.15233878,0.00015863,2]
[401576270,1768306238857,-225.18697532,0.00015863,2]
[401576271,1768306238867,-233.51889341,0.00015863,2]
[401576272,1768306238876,-250.0,0.00015863,2]
[401576273,1768306238885,-242.15909246,0.00015863,2]
[401576274,1768306238894,-250.0,0.00015863,2]
[401576275,1768306238903,-251.11897888,0.00015863,2]
[401576276,1768306238912,-260.4103811,0.00015863,2]
[401576277,1768306238921,-270.0455652,0.00015863,2]
[401576278,1768306238930,-2230.315306,0.00015863,2]
[401576279,1768306238939,-280.03725112,0.00015863,2]
[401576280,1768306238948,-290.39862941,0.00015863,2]
[401576281,1768306238957,-301.1433787,0.00015863,2]
[401576282,1768306238966,-775.0,0.00016,2]
[401576283,1768306238976,-300.0,0.00016075,2]
[401576284,1768306238985,-300.0,0.00016075,2]
[401576285,1768306238995,-300.0,0.00016075,2]
[401576286,1768306239004,-300.0,0.00016075,2]
[401576287,1768306239014,-300.0,0.00016075,2]
[401576288,1768306239023,-300.0,0.00016075,2]
[401576289,1768306239032,-300.0,0.00016075,2]
[401576290,1768306239041,-300.0,0.00016075,2]
[401576291,1768306239051,-300.0,0.00016075,2]
[401576292,1768306239060,-300.0,0.00016075,2]
[401576293,1768306239069,-300.0,0.00016075,2]
[401576294,1768306239080,-300.0,0.00016075,2]
[401576295,1768306239090,-300.0,0.00016075,2]
[401576296,1768306239100,-300.0,0.00016075,2]
[401576297,1768306239110,-300.0,0.00016075,2]
[401576298,1768306239120,-600.0,0.00016075,2]
[401576299,1768306239130,-500.0,0.00016347,2]
[401576300,1768306239139,-500.0,0.00016347,2]
[401576301,1768306239149,-2312.83697232,0.00016411,2]
[401576302,1768306239159,-185.3,0.00016438,2]
[401576303,1768306239168,-500.0,0.00016438,2]
[401576304,1768306239178,-500.0,0.00016438,2]
[401576305,1768306239187,-429.47172651,0.00016438,2]
[401576306,1768306239197,-200.0,0.00016438,2]
[401576307,1768306239207,-500.0,0.00016484,2]
[401576308,1768306239216,-500.0,0.00016484,2]
[401576309,1768306239226,-500.0,0.00016484,2]
[401576310,1768306239235,-386.5787481,0.000165,2]
[401576311,1768306239245,-200.0,0.00016621,2]
[401576312,1768306239255,-500.0,0.00016621,2]
[401576313,1768306239264,-500.0,0.00016621,2]
[401576314,1768306239274,-500.0,0.00016621,2]
[401576315,1768306239283,-800.0,0.00016654,2]
[401576316,1768306239292,-5584.2218964,0.0001666,2]
[401576317,1768306239301,-800.0,0.0001666,2]
[401576318,1768306239310,-800.0,0.000167,2]
[401576319,1768306239320,-800.0,0.00016718,2]
[401576320,1768306239329,-800.0,0.00016726,2]
[401576321,1768306239339,-577.02788419,0.00016743,2]
[401576322,1768306239348,-800.0,0.00016745,2]
[401576323,1768306239357,-500.0,0.00016758,2]
[401576324,1768306239367,-500.0,0.00016758,2]
[401576325,1768306239376,-500.0,0.00016758,2]
[401576326,1768306239385,-3884.2495199,0.00016758,2]
[401576327,1768306239394,-800.0,0.00016767,2]
[401576328,1768306239404,-800.0,0.00016801,2]
[401576329,1768306239413,-1367.0,0.00016817,2]
[401576330,1768306239422,-629.0,0.00016817,2]
[401576331,1768306239431,-2147.0,0.00016817,2]
[401576332,1768306239441,-417.0,0.00016817,2]
[401576333,1768306239452,-417.0,0.00016817,2]
[401576334,1768306239461,-715.0,0.00016817,2]
[401576335,1768306239471,-197.738,0.00016817,2]
[401576336,1768306239480,-800.0,0.00016836,2]
[401576337,1768306239490,-800.0,0.00016843,2]
[401576338,1768306239499,-800.0,0.00016866,2]
[401576339,1768306239509,-800.0,0.00016873,2]
[401576340,1768306239519,-800.0,0.00016875,2]
[401576341,1768306239528,-800.0,0.00016879,2]
[401576342,1768306239538,-800.0,0.00016883,2]
[401576343,1768306239548,-800.0,0.0001689,2]
[401576344,1768306239557,-500.0,0.00016895,2]
[401576345,1768306239567,-303.10317951,0.00016895,2]
[401576346,1768306239577,-151.72783748,0.00016895,2]
[401576347,1768306239586,-778.0,0.000169,2]
[401576348,1768306239595,-800.0,0.00016916,2]
[401576349,1768306239604,-800.0,0.00016921,2]
[401576350,1768306239612,-800.0,0.00016933,2]
[401576351,1768306239621,-185.3,0.00016944,2]
[401576352,1768306239630,-2398.4119403,0.00016959,2]
[401576353,1768306239639,-250.0,0.00017032,2]
[401576354,1768306239647,-431.54132005,0.00017032,2]
[401576355,1768306239656,-696752.60079846,0.000171,2]
[401579273,1768306288911,-217.11461226,0.00013273,2]
[401579274,1768306290291,-273.13235345,0.00013273,2]
[401579275,1768306292987,-9.75303429,0.00013273,2]
[401579276,1768306293008,-252.1270608,0.00013273,2]
[401579278,1768306295053,-185.44336633,0.00013273,2]
[401579279,1768306296448,-62.42957287,0.00013273,2]
[401579280,1768306296471,-170.66042713,0.00013273,2]
[401579281,1768306301573,-174.19780717,0.00013273,2]
[401579282,1768306303333,-155.1417657,0.00013273,2]
[401579283,1768306303362,-500.0,0.00013699,2]
[401579284,1768306303392,-1000.98976618,0.00013821,2]
[401579285,1768306303425,-745.82387209,0.00013821,2]
[401579286,1768306303454,-1000.0,0.00013821,2]
[401579287,1768306303490,-300.0,0.00014096,2]
[401579288,1768306303532,-300.0,0.00014096,2]
[401579289,1768306303573,-300.0,0.00014096,2]
[401579290,1768306303609,-300.0,0.00014096,2]
[401579291,1768306303643,-300.0,0.00014096,2]
[401579292,1768306303844,-82.74991948,0.00014096,2]
[401579293,1768306309152,-217.25008052,0.00014096,2]
[401579294,1768306309190,-300.0,0.00014096,2]
[401579295,1768306309224,-300.0,0.00014096,2]
[401579296,1768306309257,-300.0,0.00014096,2]
[401579297,1768306309290,-300.0,0.00014096,2]
[401579298,1768306309322,-300.0,0.00014096,2]
[401579299,1768306309353,-300.0,0.00014096,2]
[401579300,1768306309383,-300.0,0.00014096,2]
[401579301,1768306309414,-300.0,0.00014096,2]
[401579302,1768306309446,-300.0,0.00014096,2]
[401579303,1768306309478,-1000.0,0.00014247,2]
[401579304,1768306309506,-665.50983896,0.00014368,2]
[401579305,1768306309694,-834.49016104,0.00014368,2]
[401579306,1768306315262,-600.0,0.00014377,2]
[401579307,1768306315289,-1139.34316411,0.00014795,2]
[401579308,1768306315317,-405.59216637,0.00014916,2]
[401579309,1768306315347,-720.0,0.00015815,2]
[401579310,1768306318759,500.0,0.0001566,2]
[401579311,1768306318789,500.0,0.0001566,2]
[401579312,1768306318822,500.0,0.0001566,2]
[401579313,1768306318853,500.0,0.0001566,2]
[401579314,1768306318883,500.0,0.0001566,2]
[401579315,1768306318918,500.0,0.0001566,2]
[401579316,1768306318948,500.0,0.0001566,2]
[401579317,1768306318982,500.0,0.0001566,2]
[401579318,1768306319013,270.13933904,0.0001566,2]
[401579319,1768306407867,-218.00861682,0.00013273,2]
[401579320,1768306411484,-269.06427004,0.00013273,2]
[401579321,1768306467885,-12.92711314,0.00013273,2]
[401579322,1768306467908,-178.7776414,0.00013273,2]
[401579323,1768306470416,-226.41866267,0.00013273,2]
[401579324,1768306472821,-94.80369593,0.00013273,2]
[401579325,1768306472841,-57.77630407,0.00013273,2]
[401579327,1768306513388,-445.41479527,0.00013273,2]
[401579328,1768306513409,-107.39994123,0.00013273,2]
[401579329,1768306517630,-300.0,0.00013273,2]
[401579330,1768306527671,500.0,0.00030136,120]
[401579331,1768306529003,-92.60005877,0.00013273,2]
[401579332,1768306529024,-138.84330756,0.00013273,2]
[401579333,1768306531692,-196.9355846,0.00013273,2]
[401579334,1768306546144,-164.22110784,0.00013273,2]
[401579335,1768306546171,-285.92723921,0.00013473,2]
[401579336,1768306546201,-300.0,0.00013673,2]
[401579337,1768306546231,-234.0,0.00013698,2]
[401579338,1768306546260,-300.0,0.00013698,2]
[401579339,1768306546290,-1200.0,0.00013698,2]
[401579340,1768306546319,-500.0,0.00013699,2]
[401579341,1768306546347,-500.0,0.00013699,2]
[401579342,1768306546378,-500.0,0.00013699,2]
[401579343,1768306546407,-500.0,0.00013699,2]
[401579344,1768306546437,-31.7133059,0.00013821,2]
[401579345,1768306546659,-968.2866941,0.00013821,2]
[401579346,1768306546687,-1000.0,0.00013821,2]
[401579347,1768306546714,-1000.0,0.00013821,2]
[401579348,1768306546742,-600.0,0.00014221,2]
[401579349,1768306546768,-530.47874425,0.00014247,2]
[401579350,1768306546794,-705.95320007,0.00014247,2]
[401579351,1768306548989,-390.57272316,0.00014247,2]
[401579352,1768306549017,-742.15507317,0.00014247,2]
[401579353,1768306549168,-1000.0,0.00014247,2]
[401579354,1768306549196,-1500.0,0.00014368,2]
[401579355,1768306549225,-878.31407373,0.00014368,2]
[401579356,1768306552031,-1500.0,0.00014368,2]
[401579357,1768306552063,-300.0,0.00014504,2]
[401579358,1768306552091,-300.0,0.00014504,2]
[401579359,1768306552119,-300.0,0.00014504,2]
[401579360,1768306552149,-300.0,0.00014504,2]
[401579361,1768306552177,-300.0,0.00014504,2]
[401579362,1768306552205,-300.0,0.00014504,2]
[401579363,1768306552233,-300.0,0.00014504,2]
[401579364,1768306552263,-300.0,0.00014504,2]
[401579365,1768306552297,-300.0,0.00014504,2]
[401579366,1768306552329,-300.0,0.00014504,2]
[401579367,1768306552361,-300.0,0.00014504,2]
[401579368,1768306552394,-100.01,0.00014504,2]
[401579369,1768306552502,-199.99,0.00014504,2]
[401579370,1768306552535,-300.0,0.00014504,2]
[401579371,1768306552569,-300.0,0.00014504,2]
[401579372,1768306552600,-300.0,0.00014504,2]
[401579373,1768306552629,-900.0,0.00014768,2]
[401579374,1768306552659,-1500.0,0.00014795,2]
[401579375,1768306552690,-1000.03,0.00014916,2]
[401579376,1768306555200,-999.97,0.00014916,2]
[401579377,1768306555228,-2000.0,0.00014916,2]
[401579378,1768306555258,-420.0,0.00015011,2]
[401579379,1768306555286,-1151.0,0.00015067,2]
[401579380,1768306555316,-258.07,0.00015089,2]
[401579381,1768306573161,-245.2023864,0.00013273,2]
[401579382,1768306576290,-211.41602581,0.00013273,2]
[401579383,1768306580592,-43.38158779,0.00013273,2]
[401579384,1768306580615,-184.70262868,0.00013273,2]
[401579385,1768306582104,-315.29737132,0.00013273,2]
[401579386,1768306582130,-73.28660287,0.00013273,2]
[401579387,1768306584757,-342.87325689,0.00013273,2]
[401579388,1768306589369,-83.84014024,0.00013273,2]
[401579389,1768306589392,-185.89158422,0.00013273,2]
[401579390,1768306591931,-159.92820414,0.00013273,2]
[401579391,1768306632880,-154.18021164,0.00013273,2]
[401579392,1768306632902,-157.21651856,0.00013273,2]
[401579393,1768306636052,-278.02895934,0.00013273,2]
[401579397,1768306850346,307.08897054,0.00030136,120]
[401579398,1768306905430,58773.5202277,0.00030137,120]
[401579408,1768307158900,-224.35942418,0.00012822,2]
[401579411,1768307262977,-219.38563284,0.00012372,2]
[401579412,1768307264541,-193.16145965,0.00012372,2]
[401579413,1768307272388,-160.77133971,0.00012372,2]
[401579414,1768307279181,-207.61409938,0.00012372,2]
[401579415,1768307281128,-389.26616524,0.00012372,2]
[401579416,1768307284158,-180.32183878,0.00012372,2]
[401579417,1768307286662,-249.27944371,0.00012372,2]
[401579418,1768307288262,-276.94,0.00012372,2]
[401579419,1768307291917,-163.04901972,0.00012372,2]
[401579421,1768307308443,-331.06491163,0.00012329,2]
[401579423,1768307322878,-75.91508837,0.00012329,2]
[401579424,1768307322900,-135.50821143,0.00012329,2]
[401579425,1768307324912,-203.64178857,0.00012329,2]
[401579426,1768307324933,-135.53441395,0.00012329,2]
[401579427,1768307337950,-147.08558605,0.00012329,2]
[401579428,1768307337975,-138.59616441,0.00012329,2]
[401579433,1768307352871,-96.92383559,0.00012329,2]
[401579434,1768307352891,-115.67676337,0.00012329,2]
[401579435,1768307357241,-80.58323663,0.00012329,2]
[401579436,1768307357264,-163.55,0.00012329,2]
[401579437,1768307357289,-97.36676516,0.00012372,2]
[401579438,1768307368409,-258.97,0.00012329,2]
[401579439,1768307369957,-284.912,0.00012329,2]
[401579440,1768307412859,-273.918,0.00012329,2]
[401579441,1768307412882,-104.52258564,0.00012329,2]
[401579442,1768307414886,-167.60787051,0.00012329,2]
[401579443,1768307417091,-221.67868038,0.00012329,2]
[401579510,1768307437748,-100.19086347,0.00012329,2]
[401579512,1768307437758,-16.85493781,0.00012372,2]
[401579514,1768307437768,-4031.87052092,0.00012822,2]
[401579515,1768307437778,-300.0,0.00013272,2]
[401579516,1768307437788,-300.0,0.00013272,2]
[401579517,1768307437798,-300.0,0.00013272,2]
[401579518,1768307437808,-1200.0,0.00013272,2]
[401579519,1768307437817,-294.55332289,0.00013272,2]
[401579520,1768307437830,-500.0,0.00013273,2]
[401579521,1768307437839,-500.0,0.00013273,2]
[401579522,1768307437849,-500.0,0.00013273,2]
[401579523,1768307437858,-500.0,0.00013273,2]
[401579524,1768307437868,-500.0,0.00013273,2]
[401579525,1768307437877,-500.0,0.00013273,2]
[401579526,1768307437886,-500.0,0.00013273,2]
[401579527,1768307437896,-39819.45693673,0.00013273,2]
[401579528,1768307437908,-2609.21485791,0.00013273,2]
[401579529,1768307437917,-500.0,0.00013273,2]
[401579530,1768307437926,-573.03174207,0.00013273,2]
[401579531,1768307437935,-500.0,0.00013273,2]
[401579532,1768307437944,-500.0,0.00013273,2]
[401579533,1768307437953,-300.0,0.00013673,2]
[401579534,1768307437962,-500.0,0.00013698,2]
[401579535,1768307437971,-500.0,0.00013698,2]
[401579536,1768307437980,-486.88822055,0.00013698,2]
[401579537,1768307437989,-500.0,0.00013698,2]
[401579538,1768307437999,-416.40483068,0.00013698,2]
[401579539,1768307438008,-500.0,0.00013698,2]
[401579540,1768307438017,-500.0,0.00013698,2]
[401579541,1768307438026,-500.0,0.00013698,2]
[401579542,1768307438036,-500.0,0.00013698,2]
[401579543,1768307438045,-500.0,0.00013698,2]
[401579544,1768307438055,-500.0,0.00013698,2]
[401579545,1768307438064,-500.0,0.00013698,2]
[401579546,1768307438073,-500.0,0.00013698,2]
[401579548,1768307438089,-500.0,0.00013698,2]
[401579549,1768307438103,-500.0,0.00013698,2]
[401579550,1768307438114,-500.0,0.00013698,2]
[401579551,1768307438124,-204.93270387,0.00013698,2]
[401579552,1768307438134,-500.0,0.00013698,2]
[401579553,1768307438144,-500.0,0.00013698,2]
[401579554,1768307438154,-500.0,0.00013698,2]
[401579555,1768307438165,-500.0,0.00013698,2]
[401579556,1768307438175,-500.0,0.00013698,2]
[401579557,1768307438185,-500.0,0.00013698,2]
[401579558,1768307438194,-500.0,0.00013698,2]
[401579559,1768307438204,-500.0,0.00013698,2]
[401579560,1768307438214,-500.0,0.00013698,2]
[401579561,1768307438224,-500.0,0.00013698,2]
[401579562,1768307438234,-500.0,0.00013698,2]
[401579563,1768307438243,-500.0,0.00013698,2]
[401579564,1768307438253,-500.0,0.00013698,2]
[401579565,1768307438263,-500.0,0.00013698,2]
[401579566,1768307438273,-500.0,0.00013698,2]
[401579567,1768307438282,-320.19841387,0.00013698,2]
[401579568,1768307438292,-500.0,0.00013698,2]
[401579569,1768307438302,-500.0,0.00013698,2]
[401579570,1768307438313,-500.0,0.00013698,2]
[401579571,1768307438323,-500.0,0.00013698,2]
[401579572,1768307438332,-500.0,0.00013698,2]
[401579573,1768307438342,-500.0,0.00013698,2]
[401579574,1768307438351,-500.0,0.00013698,2]
[401579575,1768307438361,-500.0,0.00013698,2]
[401579576,1768307438370,-500.0,0.00013698,2]
[401579577,1768307438380,-500.0,0.00013698,2]
[401579578,1768307438390,-500.0,0.00013698,2]
[401579579,1768307438400,-500.0,0.00013698,2]
[401579580,1768307438409,-500.0,0.00013698,2]
[401579581,1768307438419,-500.0,0.00013698,2]
[401579582,1768307438429,-500.0,0.00013698,2]
[401579583,1768307438439,-500.0,0.00013698,2]
[401579584,1768307438448,-500.0,0.00013698,2]
[401579585,1768307438458,-554.35305989,0.00013698,2]
[401579586,1768307438468,-500.0,0.00013698,2]
[401579587,1768307438478,-500.0,0.00013698,2]
[401579588,1768307438487,-500.0,0.00013698,2]
[401579589,1768307438498,-500.0,0.00013698,2]
[401579590,1768307438508,-534.4899281,0.00013698,2]
[401579591,1768307438518,-500.0,0.00013698,2]
[401579592,1768307438528,-500.0,0.00013698,2]
[401579593,1768307438537,-500.0,0.00013698,2]
[401579594,1768307438547,-500.0,0.00013698,2]
[401579595,1768307438556,-500.0,0.00013698,2]
[401579596,1768307438566,-500.0,0.00013698,2]
[401579597,1768307438575,-59604.9411477,0.00013699,2]
[401579598,1768307438584,-500.0,0.00013699,2]
[401579599,1768307438598,-500.0,0.00013699,2]
[401579600,1768307438608,-205.46386678,0.00013699,2]
[401579601,1768307438618,-500.0,0.00013699,2]
[401579602,1768307438628,-500.0,0.00013699,2]
[401579603,1768307438637,-500.0,0.00013699,2]
[401579604,1768307438647,-500.0,0.00013699,2]
[401579605,1768307438657,-500.0,0.00013699,2]
[401579606,1768307438667,-500.0,0.00013699,2]
[401579607,1768307438677,-500.0,0.00013699,2]
[401579608,1768307438687,-500.0,0.00013699,2]
[401579609,1768307438697,-500.0,0.00013699,2]
[401579610,1768307438707,-500.0,0.00013699,2]
[401579611,1768307438717,-500.0,0.00013699,2]
[401579612,1768307438727,-583.33022766,0.00013699,2]
[401579613,1768307438736,-500.0,0.00013699,2]
[401579614,1768307438747,-500.0,0.00013699,2]
[401579615,1768307438757,-500.0,0.00013699,2]
[401579616,1768307438766,-518.7619381,0.00013699,2]
[401579617,1768307438776,-500.0,0.00013699,2]
[401579618,1768307438786,-502.86304528,0.00013699,2]
[401579619,1768307438795,-500.0,0.00013699,2]
[401579620,1768307438805,-500.0,0.00013699,2]
[401579621,1768307438815,-500.0,0.00013699,2]
[401579622,1768307438827,-1000.0,0.00013821,2]
[401579623,1768307438837,-1000.0,0.00013821,2]
[401579624,1768307438847,-1000.0,0.00013821,2]
[401579625,1768307438856,-1000.0,0.00013821,2]
[401579626,1768307438867,-1000.0,0.00013821,2]
[401579627,1768307438877,-1000.0,0.00013821,2]
[401579628,1768307438887,-1000.0,0.00013821,2]
[401579629,1768307438896,-1000.0,0.00013821,2]
[401579630,1768307438907,-1000.0,0.00013821,2]
[401579631,1768307438917,-1000.0,0.00013821,2]
[401579632,1768307438926,-500.0,0.00013972,2]
[401579633,1768307438935,-300.0,0.00014096,2]
[401579634,1768307438948,-300.0,0.00014096,2]
[401579635,1768307438958,-300.0,0.00014096,2]
[401579636,1768307438968,-300.0,0.00014096,2]
[401579637,1768307438978,-300.0,0.00014096,2]
[401579638,1768307438988,-300.0,0.00014096,2]
[401579639,1768307438998,-300.0,0.00014096,2]
[401579640,1768307439009,-300.0,0.00014096,2]
[401579641,1768307439018,-300.0,0.00014096,2]
[401579642,1768307439028,-300.0,0.00014096,2]
[401579643,1768307439037,-300.0,0.00014096,2]
[401579644,1768307439047,-300.0,0.00014096,2]
[401579645,1768307439057,-300.0,0.00014096,2]
[401579646,1768307439066,-300.0,0.00014096,2]
[401579647,1768307439075,-300.0,0.00014096,2]
[401579648,1768307439085,-600.0,0.00014221,2]
[401579649,1768307439095,-1000.0,0.00014247,2]
[401579650,1768307439104,-1000.0,0.00014247,2]
[401579651,1768307439114,-501.26399355,0.00014247,2]
[401579652,1768307439124,-1122.57578323,0.00014247,2]
[401579653,1768307439133,-924.89610983,0.00014247,2]
[401579654,1768307439142,-1000.0,0.00014247,2]
[401579655,1768307439152,-1000.0,0.00014247,2]
[401579656,1768307439161,-1000.0,0.00014247,2]
[401579657,1768307439170,-1000.0,0.00014247,2]
[401579658,1768307439180,-1000.0,0.00014247,2]
[401579659,1768307439190,-504.03433816,0.00014247,2]
[401579660,1768307439200,-489.51823783,0.00014247,2]
[401579661,1768307439209,-502.68483056,0.00014247,2]
[401579662,1768307439219,-1000.0,0.00014247,2]
[401579663,1768307439229,-1000.0,0.00014247,2]
[401579664,1768307439239,-1020.89382194,0.00014247,2]
[401579665,1768307439249,-1000.0,0.00014247,2]
[401579666,1768307439259,-1000.0,0.00014247,2]
[401579667,1768307439268,-1000.0,0.00014247,2]
[401579668,1768307439278,-2411.9880027,0.00014365,2]
[401579669,1768307439290,-1500.0,0.00014368,2]
[401579670,1768307439299,-1000.0,0.00014368,2]
[401579671,1768307439309,-777.3916054,0.00014368,2]
[401579672,1768307439318,-1500.0,0.00014368,2]
[401579673,1768307439327,-164.74090695,0.00014368,2]
[401579674,1768307439336,-1500.0,0.00014368,2]
[401579675,1768307439346,-500.0,0.00014368,2]
[401579677,1768307439355,-1500.0,0.00014368,2]
[401579679,1768307439364,-1500.0,0.00014368,2]
[401579681,1768307439373,-1500.0,0.00014368,2]
[401579682,1768307439383,-600.0,0.00014377,2]
[401579683,1768307439392,-34591.3981886,0.00014378,2]
[401579684,1768307439402,-5086.67469635,0.0001451,2]
[401579685,1768307439411,-420.0,0.00014551,2]
[401579686,1768307439421,-480.0,0.00014599,2]
[401579687,1768307439430,-250.0,0.00014632,2]
[401579688,1768307439440,-250.0,0.00014658,2]
[401579689,1768307439449,-900.0,0.00014768,2]
[401579690,1768307439458,-500.0,0.00014795,2]
[401579691,1768307439467,-500.0,0.00014795,2]
[401579692,1768307439477,-1000.0,0.00014795,2]
[401579693,1768307439486,-1500.0,0.00014795,2]
[401579695,1768307439496,-1500.0,0.00014795,2]
[401579696,1768307439505,-1500.0,0.00014795,2]
[401579697,1768307439515,-1500.0,0.00014795,2]
[401579698,1768307439525,-731.95532903,0.00014795,2]
[401579699,1768307439534,-502.39813011,0.00014795,2]
[401579700,1768307439543,-1151.92451104,0.00014795,2]
[401579701,1768307439552,-1500.0,0.00014795,2]
[401579702,1768307439562,-1541.40773309,0.00014795,2]
[401579703,1768307439571,-1989.03037339,0.00014916,2]
[401579704,1768307439580,-1000.0,0.00014916,2]
[401579705,1768307439589,-2000.0,0.00014916,2]
[401579706,1768307439599,-2000.0,0.00014916,2]
[401579707,1768307439609,-1000.0,0.00014916,2]
[401579708,1768307439618,-2000.0,0.00014916,2]
[401579709,1768307439628,-165.0,0.00015,2]
[401579710,1768307439639,-538.57175688,0.00015,2]
[401579711,1768307439648,-800.0,0.00015068,2]
[401579712,1768307439657,-347.57292101,0.00015272,2]
[401579713,1768307439667,-1200.0,0.00015316,2]
[401579714,1768307439676,-2000.0,0.00015342,2]
[401579715,1768307439686,-2000.0,0.00015342,2]
[401579716,1768307439695,-500.0,0.00015342,2]
[401579717,1768307439705,-500.0,0.00015342,2]
[401579718,1768307439714,-2500.0,0.00015464,2]
[401579719,1768307439724,-500.0,0.00015464,2]
[401579721,1768307439734,-2500.0,0.00015464,2]
[401579723,1768307439744,-1041.66666667,0.00015504,2]
[401579724,1768307439754,-223.46847972,0.0001556,2]
[401579725,1768307439765,-200.0,0.0001556,2]
[401579726,1768307439775,-1598.45159995,0.0001556,2]
[401579727,1768307439786,-720.0,0.00015815,2]
[401579728,1768307439795,-600.0,0.00015864,2]
[401579729,1768307439805,-2500.0,0.0001589,2]
[401579730,1768307439815,-2500.0,0.0001589,2]
[401579731,1768307439826,-587.0,0.00015953,2]
[401579732,1768307439835,-1184.75092709,0.00016012,2]
[401579733,1768307439845,-250.0,0.00016018,2]
[401579734,1768307439854,-250.0,0.00016018,2]
[401579735,1768307439864,-168.3888056,0.00016018,2]
[401579736,1768307439873,-311.85701,0.00016018,2]
[401579737,1768307439882,-250.0,0.00016018,2]
[401579738,1768307439891,-250.0,0.00016018,2]
[401579739,1768307439901,-2230.315306,0.00016018,2]
[401579740,1768307439910,-168.3888056,0.00016018,2]
[401579741,1768307439920,-174.61919141,0.00016018,2]
[401579742,1768307439930,-181.08010149,0.00016018,2]
[401579743,1768307439940,-187.78006525,0.00016018,2]
[401579744,1768307439949,-194.72792766,0.00016018,2]
[401579745,1768307439958,-151.0,0.00016018,2]
[401579746,1768307439967,-461.67526834,0.00016018,2]
[401579747,1768307439976,-201.93286099,0.00016018,2]
[401579748,1768307439986,-209.40437684,0.00016018,2]
[401579749,1768307439995,-217.15233878,0.00016018,2]
[401579750,1768307440005,-225.18697532,0.00016018,2]
[401579751,1768307440014,-233.51889341,0.00016018,2]
[401579752,1768307440023,-242.15909246,0.00016018,2]
[401579753,1768307440033,-251.11897888,0.00016018,2]
[401579754,1768307440042,-260.4103811,0.00016018,2]
[401579755,1768307440052,-270.0455652,0.00016018,2]
[401579756,1768307440061,-280.03725112,0.00016018,2]
[401579757,1768307440070,-2030.296672,0.00016018,2]
[401579758,1768307440080,-290.39862941,0.00016018,2]
[401579759,1768307440090,-301.1433787,0.00016018,2]
[401579760,1768307440099,-2105.41764886,0.00016073,2]
[401579761,1768307440109,-2183.31810187,0.00016128,2]